bitfinex/quotes_SOLUSD_20241202
["timestamp","ask_amount","ask_price","bid_price","bid_amount"]
[1733145298091,13.7950266,223.84,223.78,4.48]
[1733145298292,0.5317091,223.84,223.81,13.2633175]
[1733145299103,0.5317091,223.84,223.82,4.48]
[1733145300517,0.5317091,223.84,223.83,4.48]
[1733145300718,0.5317091,223.84,223.83,17.7433175]
[1733145301022,0.5317091,223.84,223.83,4.48]
[1733145301405,0.5317091,223.84,223.79,13.2633175]
[1733145301619,0.5317091,223.84,223.8,4.48]
[1733145301931,0.5317091,223.84,223.83,13.2633175]
[1733145302608,0.5317091,223.84,223.83,17.7433175]
[1733145304333,0.5317091,223.84,223.83,17.8688075]
[1733145305538,13.2633175,223.94,223.87,4.48]
[1733145305692,13.2633175,223.94,223.89,4.48]
[1733145305899,1.60610564,223.98,223.89,4.48]
[1733145306097,13.2633175,223.94,223.89,4.48]
[1733145308003,13.2633175,223.93,223.87,17.7433175]
[1733145308224,13.2633175,223.9,223.85,4.48]
[1733145308527,13.2633175,223.89,223.85,4.48]
[1733145308829,13.2633175,223.9,223.85,4.48]
[1733145309825,13.2633175,223.89,223.83,17.7433175]
[1733145310017,13.2633175,223.9,223.83,17.7433175]
[1733145310331,13.2633175,223.9,223.85,4.48]
[1733145310630,13.2633175,223.91,223.85,17.7433175]
[1733145311019,13.2633175,223.9,223.85,4.48]
[1733145311505,13.2633175,223.87,223.83,4.48]
[1733145311708,13.2633175,223.84,223.77,12.9633]
[1733145311915,13.2633175,223.81,223.77,12.9633]
[1733145312130,13.2633175,223.78,223.72,12.507]
[1733145312334,13.2633175,223.76,223.72,12.507]
[1733145312842,13.2633175,223.78,223.72,16.987]
[1733145313334,13.2633175,223.73,223.67,12.9936]
[1733145313507,13.2633175,223.72,223.67,12.9936]
[1733145313710,13.2633175,223.73,223.67,17.4736]
[1733145313930,13.2633175,223.74,223.67,30.7369175]
[1733145314316,37.0402015,223.73,223.67,30.7369175]
[1733145314540,13.2633175,223.71,223.67,17.4736]
[1733145315338,13.75332314,223.72,223.67,17.4736]
[1733145315532,0.49000564,223.72,223.67,17.4736]
[1733145315733,13.75332314,223.72,223.67,17.4736]
[1733145315941,5.0,223.8,223.67,17.4736]
[1733145315942,13.2633175,223.76,223.7,4.48]
[1733145316143,13.75332314,223.75,223.7,4.48]
[1733145317037,13.75332314,223.75,223.69,4.48]
[1733145317244,13.2633175,223.74,223.69,4.48]
[1733145317416,0.49000564,223.75,223.69,4.48]
[1733145317417,13.2633175,223.75,223.69,4.48]
[1733145317613,13.2633175,223.78,223.71,13.2633175]
[1733145317829,13.2633175,223.79,223.73,4.48]
[1733145318431,13.75332314,223.78,223.73,4.48]
[1733145318637,13.75332314,223.78,223.72,4.48]
[1733145318832,13.2633175,223.78,223.72,4.48]
[1733145319318,13.2633175,223.79,223.72,17.7433175]
[1733145319518,13.2633175,223.79,223.71,20.0]
[1733145319726,13.2633175,223.8,223.72,13.2633175]
[1733145320439,13.2633175,223.8,223.73,17.7433175]
[1733145320743,0.49000564,223.82,223.75,13.2633175]
[1733145320744,13.2633175,223.82,223.75,13.2633175]
[1733145321240,13.2633175,223.81,223.74,13.2633175]
[1733145321534,13.2633175,223.82,223.75,17.7433175]
[1733145322319,13.2633175,223.85,223.78,13.2633175]
[1733145322521,13.2633175,223.87,223.8,17.7433175]
[1733145322918,13.2633175,223.88,223.82,4.48]
[1733145323124,13.75332314,223.87,223.82,4.48]
[1733145324124,13.75332314,223.87,223.81,4.48]
[1733145324521,13.2633175,223.88,223.82,4.48]
[1733145324926,13.2633175,223.9,223.84,4.48]
[1733145326037,13.2633175,223.91,223.85,4.48]
[1733145326239,13.2633175,223.9,223.85,4.48]
[1733145326629,24.26688964,223.95,223.83,13.2633175]
[1733145326937,13.2633175,223.91,223.83,13.2633175]
[1733145327122,13.2633175,223.9,223.83,13.2633175]
[1733145327457,13.2633175,223.91,223.83,13.2633175]
[1733145327620,13.2633175,223.93,223.86,13.2633175]
[1733145327821,13.2633175,223.93,223.86,44.6254175]
[1733145328145,13.2633175,223.92,223.86,31.3621]
[1733145329120,13.2633175,223.91,223.86,31.3621]
[1733145329846,24.26688964,223.98,223.86,44.6254175]
[1733145330030,13.2633175,223.93,223.86,44.6254175]
[1733145330228,13.75332314,223.92,223.86,31.3621]
[1733145330528,13.2633175,223.92,223.86,31.3621]
[1733145330743,13.2633175,223.91,223.86,31.3621]
[1733145335645,13.2633175,223.91,223.87,4.48]
[1733145335832,13.2633175,223.92,223.87,4.48]
[1733145337423,13.2633175,223.92,223.85,17.7433175]
[1733145337627,13.2633175,223.92,223.86,33.2633175]
[1733145337849,13.2633175,223.92,223.86,20.0]
[1733145338024,13.2633175,223.91,223.86,20.0]
[1733145338227,13.75332314,223.9,223.85,4.48]
[1733145338531,13.2633175,223.88,223.82,16.6862]
[1733145338737,13.2633175,223.83,223.76,43.5196]
[1733145339076,13.2633175,223.8,223.76,43.5196]
[1733145339641,13.2633175,223.78,223.76,43.5196]
[1733145339855,13.2633175,223.77,223.76,13.1778]
[1733145340254,13.2633175,223.78,223.76,13.1778]
[1733145341427,13.2633175,223.8,223.76,13.1778]
[1733145341631,13.2633175,223.81,223.76,13.1778]
[1733145341846,13.2633175,223.82,223.76,26.4411175]
[1733145342843,13.2633175,223.83,223.77,4.48]
[1733145343157,13.2633175,223.86,223.8,17.7433175]
[1733145343456,13.2633175,223.88,223.81,45.1107175]
[1733145345263,13.2633175,223.87,223.81,31.8474]
[1733145345762,13.2633175,223.87,223.82,4.48]
[1733145346251,13.2633175,223.86,223.82,4.48]
[1733145346458,13.2633175,223.83,223.81,31.8474]
[1733145346666,13.2633175,223.83,223.78,0.12549]
[1733145347039,13.2633175,223.84,223.77,17.7433175]
[1733145347245,13.2633175,223.85,223.79,13.2633175]
[1733145347449,13.2633175,223.87,223.8,17.7333175]
[1733145347764,13.2633175,223.86,223.8,17.7333175]
[1733145347963,13.2633175,223.87,223.8,17.7333175]
[1733145348143,13.2633175,223.88,223.81,13.2633175]
[1733145348858,13.2633175,223.89,223.82,13.2633175]
[1733145349069,13.2633175,223.88,223.81,13.2633175]
[1733145349259,13.2633175,223.88,223.82,13.2633175]
[1733145349571,13.2633175,223.88,223.83,4.47]
[1733145350559,0.49000564,223.93,223.83,49.0173]
[1733145350745,13.2633175,223.89,223.83,49.0173]
[1733145350951,13.2633175,223.89,223.83,17.7127]
[1733145351146,13.2633175,223.85,223.83,13.2427]
[1733145351358,13.2633175,223.86,223.83,13.2427]
[1733145352370,13.2633175,223.88,223.83,13.2427]
[1733145352969,13.2633175,223.89,223.83,13.2427]
[1733145353667,13.2633175,223.88,223.83,13.2427]
[1733145354054,13.2633175,223.89,223.83,26.5060175]
[1733145355065,13.2633175,223.9,223.83,26.5060175]
[1733145355271,13.2633175,223.91,223.84,17.7333175]
[1733145356461,0.49000564,223.95,223.83,13.2427]
[1733145356462,13.2633175,223.94,223.88,4.47]
[1733145356679,13.2633175,223.95,223.9,4.47]
[1733145356853,13.2633175,223.96,223.9,4.47]
[1733145357349,13.2633175,223.98,223.93,4.47]
[1733145357554,13.2633175,224.0,223.93,25.5001175]
[1733145358058,13.2633175,223.97,223.93,12.2368]
[1733145358262,13.2633175,223.97,223.94,4.47]
[1733145358768,13.2633175,223.98,223.94,4.47]
[1733145359573,13.2633175,224.0,223.94,4.47]
[1733145360259,13.2633175,224.01,223.94,17.7333175]
[1733145360575,13.2633175,224.0,223.94,4.47]
[1733145360772,13.2633175,223.98,223.94,4.47]
[1733145360975,20.0,224.03,223.96,4.47]
[1733145361273,0.49000564,224.02,223.96,4.47]
[1733145361886,0.49000564,224.02,223.94,4.47]
[1733145362167,13.2633175,223.95,223.94,4.47]
[1733145362377,13.2633175,223.95,223.93,16.7068]
[1733145362543,13.75332314,223.94,223.88,44.3448]
[1733145362741,13.2633175,223.92,223.88,44.3448]
[1733145362953,13.2633175,223.94,223.88,57.6081175]
[1733145363344,13.2633175,223.96,223.9,13.2633175]
[1733145363561,13.2633175,223.97,223.91,4.47]
[1733145363978,13.2633175,223.98,223.92,13.2633175]
[1733145364164,13.2633175,224.0,223.94,13.2633175]
[1733145364351,13.2633175,224.02,223.96,13.2633175]
[1733145364550,13.2633175,224.02,223.96,4.47]
[1733145366044,13.2633175,224.02,223.98,4.47]
[1733145366271,1.02171474,224.06,223.98,35.3192]
[1733145366571,13.2633175,224.02,223.98,35.3192]
[1733145366749,13.2633175,224.0,223.89,13.0205]
[1733145367075,13.2633175,223.99,223.93,4.47]
[1733145367270,13.2633175,224.0,223.95,4.47]
[1733145367456,13.2633175,224.02,223.95,17.7333175]
[1733145367771,13.2633175,224.02,223.97,4.47]
[1733145368477,13.2633175,224.01,223.97,4.47]
[1733145368655,1.02171474,224.06,223.98,4.47]
[1733145368656,13.2633175,223.99,223.98,4.47]
[1733145369372,13.2633175,223.99,223.93,4.47]
[1733145369677,13.2633175,224.0,223.95,4.47]
[1733145369857,13.2633175,223.98,223.95,4.47]
[1733145370259,13.2633175,223.97,223.95,4.47]
[1733145370463,13.2633175,223.97,223.91,13.2633175]
[1733145370464,13.2633175,223.97,223.92,4.47]
[1733145371377,13.2633175,223.98,223.92,4.47]
[1733145371572,13.2633175,223.99,223.93,13.2633175]
[1733145371764,13.2633175,224.0,223.94,13.2633175]
[1733145371968,13.2633175,224.0,223.95,4.47]
[1733145372879,13.2633175,224.01,223.95,17.7333175]
[1733145374751,13.2633175,224.02,223.95,17.7333175]
[1733145374951,13.2633175,224.0,223.95,4.47]
[1733145375478,13.2633175,224.01,223.95,17.7333175]
[1733145376482,1.02171474,224.06,223.95,17.7333175]
[1733145376483,13.2633175,224.02,223.95,17.7333175]
[1733145376982,13.2633175,224.02,223.96,13.2633175]
[1733145377357,13.2633175,224.03,223.98,4.47]
[1733145377975,13.2633175,224.02,223.97,4.47]
[1733145378168,13.2633175,224.03,223.97,17.7333175]
[1733145378363,13.2633175,224.04,223.98,62.2023075]
[1733145378561,13.7950266,224.06,223.99,13.2633175]
[1733145379259,13.7950266,224.06,224.0,13.2633175]
[1733145379678,13.2633175,224.04,223.98,12.3828]
[1733145379873,0.5317091,224.06,223.99,13.2633175]
[1733145380078,13.7950266,224.06,223.99,13.2633175]
[1733145380274,0.49000564,224.05,223.99,13.2633175]
[1733145380457,13.7950266,224.06,224.0,4.47]
[1733145381285,13.2633175,224.04,224.0,4.47]
[1733145381464,13.7950266,224.06,224.0,4.47]
[1733145381984,0.5317091,224.06,224.0,17.7333175]
[1733145384091,0.5317091,224.06,224.02,4.47]
[1733145384978,0.5317091,224.06,224.02,48.7376175]
[1733145385188,0.5317091,224.06,224.04,4.47]
[1733145386687,0.5317091,224.06,224.04,17.7333175]
[1733145387262,0.5317091,224.06,224.05,13.2633175]
[1733145387458,0.5317091,224.06,224.04,4.47]
[1733145387993,0.5317091,224.06,224.03,4.47]
[1733145388171,0.5317091,224.06,224.03,17.7333175]
[1733145388364,0.5317091,224.06,224.03,4.47]
[1733145388674,0.5317091,224.06,224.03,13.2633175]
[1733145389478,0.5317091,224.06,224.04,13.2633175]
[1733145389672,0.5317091,224.06,224.04,17.7333175]
[1733145390286,0.5317091,224.06,224.05,13.2633175]
[1733145390465,0.5317091,224.06,223.98,12.3828]
[1733145390466,13.7950266,224.06,223.98,12.3828]
[1733145390671,13.7950266,224.06,223.99,17.7333175]
[1733145390896,0.5317091,224.06,224.02,13.2633175]
[1733145391565,0.5317091,224.06,224.02,17.7333175]
[1733145392274,0.5317091,224.06,224.03,13.2633175]
[1733145392480,0.5317091,224.06,224.04,13.2633175]
[1733145392667,0.5317091,224.06,224.05,17.7333175]
[1733145392988,0.5317091,224.06,224.05,13.2633175]
[1733145393187,0.5317091,224.06,224.05,44.7125175]
[1733145393500,0.5317091,224.06,224.05,31.4492]
[1733145393693,0.5317091,224.06,224.04,4.47]
[1733145393867,0.5317091,224.06,224.05,17.7333175]
[1733145397887,0.5317091,224.06,224.05,44.100125]
[1733145398403,13.2633175,224.22,224.1,0.12549]
[1733145398578,0.49000564,224.23,224.18,13.2633175]
[1733145398781,13.2633175,224.25,224.18,13.2633175]
[1733145398782,0.49000564,224.24,224.19,4.47]
[1733145399298,0.49000564,224.24,224.19,13.2633175]
[1733145399474,13.2633175,224.22,224.16,13.2633175]
[1733145399685,13.75332314,224.21,224.15,13.2633175]
[1733145399878,0.49000564,224.21,224.16,4.47]
[1733145400077,0.49000564,224.26,224.17,4.47]
[1733145400390,13.2633175,224.22,224.14,12.978]
[1733145400697,13.2633175,224.22,224.15,13.2633175]
[1733145401002,13.2633175,224.23,224.17,17.7333175]
[1733145401300,13.2633175,224.24,224.18,13.2633175]
[1733145401480,0.5317091,224.28,224.21,13.2633175]
[1733145401688,13.2633175,224.27,224.21,13.2633175]
[1733145401885,13.2633175,224.26,224.21,4.47]
[1733145402082,13.2633175,224.24,224.21,4.47]
[1733145402491,13.2633175,224.22,224.16,31.3179]
[1733145402750,13.2633175,224.21,224.16,31.3179]
[1733145402893,13.2633175,224.21,224.17,4.47]
[1733145403571,13.2633175,224.21,224.16,4.47]
[1733145405892,13.2633175,224.22,224.17,4.47]
[1733145406402,13.2633175,224.23,224.18,4.47]
[1733145406619,13.2633175,224.24,224.18,4.47]
[1733145406924,13.2633175,224.23,224.18,4.47]
[1733145407107,13.2633175,224.23,224.17,4.47]
[1733145407304,13.2633175,224.23,224.17,17.7333175]
[1733145407507,13.2633175,224.23,224.17,4.47]
[1733145407913,13.2633175,224.22,224.17,4.47]
[1733145408700,13.2633175,224.21,224.18,4.47]
[1733145409614,13.2633175,224.2,224.18,4.47]
[1733145409826,10.0,224.35,224.18,4.47]
[1733145409827,5.0,224.44,224.22,30.4654]
[1733145410128,13.2633175,224.34,224.26,20.12549]
[1733145410288,13.2633175,224.32,224.27,20.0]
[1733145410920,13.2633175,224.33,224.29,4.47]
[1733145412005,13.2633175,224.32,224.26,4.47]
[1733145412889,13.2633175,224.32,224.27,4.47]
[1733145413092,13.2633175,224.4,224.27,4.47]
[1733145413093,13.2633175,224.31,224.27,4.47]
[1733145413408,25.141964,224.39,224.27,4.47]
[1733145413409,13.2633175,224.33,224.27,4.47]
[1733145413720,13.2633175,224.34,224.27,4.47]
[1733145413890,6.0236,224.43,224.27,4.47]
[1733145413891,23.776884,224.45,224.29,4.47]
[1733145414091,23.776884,224.45,224.27,0.88931543]
[1733145414092,0.5317091,224.51,224.47,20.0]
[1733145414293,0.5317091,224.51,224.31,70.0]
[1733145414294,5.0,224.67,224.51,20.0]
[1733145414615,3.9885036,224.69,224.5,32.152]
[1733145414616,5.0,224.64,224.5,12.152]
[1733145414914,13.2633175,224.51,224.43,13.2633175]
[1733145415115,5.0,224.62,224.42,12.6881]
[1733145415116,13.2633175,224.49,224.42,12.6881]
[1733145415294,13.2633175,224.49,224.43,4.47]
[1733145415495,5.0,224.63,224.48,13.2633175]
[1733145415809,5.5317091,224.73,224.56,12.0714]
[1733145416124,13.2633175,224.66,224.58,13.2633175]
[1733145416328,13.7950266,224.73,224.56,12.0714]
[1733145416329,0.5317091,224.73,224.61,4.47]
[1733145416617,0.5317091,224.73,224.63,4.47]
[1733145417008,13.2633175,224.7,224.6,20.0]
[1733145417201,13.2633175,224.71,224.63,13.2633175]
[1733145417394,13.2633175,224.72,224.65,4.47]
[1733145417625,0.5317091,224.73,224.64,20.93964767]
[1733145417798,0.5317091,224.73,224.67,20.93964767]
[1733145418001,20.93964767,224.69,224.56,12.219]
[1733145418195,0.5317091,224.73,224.6,20.93964767]
[1733145418492,20.93964767,224.67,224.56,12.219]
[1733145418697,20.93964767,224.62,224.56,12.219]
[1733145418923,20.93964767,224.62,224.56,33.15864767]
[1733145419098,20.93964767,224.66,224.58,21.06513767]
[1733145419303,20.93964767,224.69,224.62,4.47]
[1733145419496,20.93964767,224.69,224.62,5.35783878]
[1733145419720,0.5317091,224.73,224.66,4.47]
[1733145419909,0.5317091,224.73,224.7,20.93964767]
[1733145420215,0.5317091,224.73,224.71,20.93964767]
[1733145420613,0.5317091,224.73,224.69,20.93964767]
[1733145420798,0.5317091,224.73,224.67,20.93964767]
[1733145421208,0.5317091,224.73,224.69,20.93964767]
[1733145421394,21.47135677,224.73,224.66,20.93964767]
[1733145421598,20.93964767,224.7,224.6,0.88773846]
[1733145421922,20.93964767,224.65,224.58,20.93964767]
[1733145422219,20.93964767,224.65,224.55,32.4876]
[1733145422220,20.0,224.67,224.49,13.0097]
[1733145422426,20.93964767,224.57,224.5,21.9577832]
[1733145422609,20.12549,224.66,224.51,1.01809019]
[1733145422924,20.93964767,224.68,224.61,20.93964767]
[1733145423297,20.0,224.72,224.63,20.93964767]
[1733145423501,21.47135677,224.73,224.66,20.93964767]
[1733145423702,21.47135677,224.73,224.64,20.93964767]
[1733145423703,20.93964767,224.71,224.64,20.93964767]
[1733145423914,0.5317091,224.73,224.62,20.93964767]
[1733145423915,20.93964767,224.69,224.62,20.93964767]
[1733145424129,20.93964767,224.68,224.62,20.93964767]
[1733145424701,20.93964767,224.69,224.62,20.93964767]
[1733145424908,20.93964767,224.69,224.57,20.0]
[1733145424909,20.93964767,224.68,224.61,20.93964767]
[1733145425113,0.5317091,224.73,224.61,20.93964767]
[1733145425329,20.93964767,224.68,224.61,20.93964767]
[1733145425845,0.5317091,224.73,224.63,20.93964767]
[1733145426001,20.93964767,224.69,224.62,20.93964767]
[1733145426509,20.93964767,224.68,224.61,20.93964767]
[1733145426703,0.5317091,224.73,224.63,20.93964767]
[1733145426923,20.93964767,224.7,224.63,20.93964767]
[1733145427097,0.5317091,224.73,224.62,20.93964767]
[1733145427300,20.93964767,224.65,224.59,20.93964767]
[1733145427832,0.5317091,224.73,224.64,20.93964767]
[1733145428127,0.5317091,224.73,224.66,0.12549]
[1733145428421,0.5317091,224.73,224.7,20.93964767]
[1733145428728,0.5317091,224.73,224.69,20.93964767]
[1733145429226,0.5317091,224.73,224.71,20.93964767]
[1733145429534,0.5317091,224.73,224.69,20.93964767]
[1733145429826,0.5317091,224.73,224.7,20.93964767]
[1733145430203,0.5317091,224.73,224.69,20.93964767]
[1733145430626,0.5317091,224.73,224.7,20.93964767]
[1733145430829,0.5317091,224.73,224.71,20.93964767]
[1733145431206,0.5317091,224.73,224.72,20.93964767]
[1733145432233,20.93964767,224.79,224.72,20.93964767]
[1733145432405,31.2071,224.88,224.64,28.941096]
[1733145432406,20.93964767,224.75,224.68,20.93964767]
[1733145432812,20.93964767,224.75,224.69,20.93964767]
[1733145433020,20.93964767,224.76,224.7,20.93964767]
[1733145433315,20.93964767,224.77,224.7,20.93964767]
[1733145433722,20.93964767,224.77,224.63,12.9239]
[1733145433723,20.93964767,224.75,224.68,20.93964767]
[1733145433930,20.93964767,224.77,224.7,20.93964767]
[1733145434143,30.0954,224.88,224.76,20.93964767]
[1733145434312,20.93964767,224.83,224.76,20.93964767]
[1733145434707,20.93964767,224.82,224.76,20.93964767]
[1733145434930,20.93964767,224.8,224.73,20.93964767]
[1733145435131,20.93964767,224.78,224.72,20.93964767]
[1733145435312,20.93964767,224.81,224.75,20.93964767]
[1733145435514,20.93964767,224.8,224.75,4.47]
[1733145435825,20.93964767,224.8,224.76,4.47]
[1733145436013,20.93964767,224.77,224.68,20.93964767]
[1733145436214,24.027864,224.8,224.64,13.276]
[1733145436414,20.93964767,224.72,224.65,20.93964767]
[1733145436625,20.0,224.8,224.69,4.47]
[1733145437032,20.93964767,224.76,224.71,4.47]
[1733145437219,20.93964767,224.77,224.71,4.47]
[1733145437422,20.93964767,224.73,224.71,4.47]
[1733145437613,20.93964767,224.74,224.71,4.47]
[1733145437813,20.93964767,224.75,224.71,4.47]
[1733145438113,20.93964767,224.77,224.71,4.47]
[1733145438424,20.93964767,224.78,224.72,25.40964767]
[1733145438826,20.93964767,224.78,224.72,4.47]
[1733145439007,20.93964767,224.76,224.72,4.47]
[1733145439911,20.93964767,224.73,224.66,4.47]
[1733145440111,20.93964767,224.73,224.59,17.815125]
[1733145440112,20.93964767,224.67,224.6,20.93964767]
[1733145440524,20.93964767,224.67,224.61,20.93964767]
[1733145440713,5.0,224.79,224.66,20.93964767]
[1733145440714,23.776884,224.79,224.66,20.93964767]
[1733145440914,23.776884,224.79,224.59,0.88782339]
[1733145441343,21.1121,224.8,224.6,24.027864]
[1733145441634,1.112,224.82,224.62,35.157364]
[1733145441843,20.93964767,224.77,224.7,20.93964767]
[1733145443130,20.93964767,224.76,224.69,20.93964767]
[1733145443340,20.93964767,224.74,224.67,20.93964767]
[1733145443740,20.93964767,224.71,224.64,20.93964767]
[1733145443921,20.93964767,224.72,224.66,20.93964767]
[1733145444120,20.93964767,224.75,224.69,20.93964767]
[1733145444318,20.93964767,224.76,224.69,20.93964767]
[1733145444523,20.93964767,224.75,224.69,20.93964767]
[1733145444826,20.93964767,224.72,224.66,20.93964767]
[1733145445033,20.93964767,224.67,224.61,20.93964767]
[1733145445341,20.93964767,224.68,224.62,20.93964767]
[1733145445525,20.93964767,224.69,224.62,20.93964767]
[1733145445850,35.1342,224.92,224.67,30.678]
[1733145446143,5.0,224.85,224.67,30.678]
[1733145446849,5.0,224.86,224.67,35.148]
[1733145447337,20.93964767,224.79,224.72,20.93964767]
[1733145447953,20.93964767,224.83,224.76,20.93964767]
[1733145448244,5.0,224.89,224.67,31.56568159]
[1733145448245,20.93964767,224.87,224.8,20.93964767]
[1733145448743,30.697639,224.94,224.81,0.88730808]
[1733145448917,30.697639,224.94,224.73,12.9268]
[1733145448918,35.697639,224.94,224.74,4.47]
[1733145449341,5.0,224.93,224.74,4.47]
[1733145449639,5.0,224.92,224.74,4.47]
[1733145449839,20.93964767,224.83,224.76,20.93964767]
[1733145450031,20.93964767,224.79,224.73,12.9268]
[1733145450239,20.93964767,224.81,224.74,20.93964767]
[1733145450419,20.93964767,224.81,224.71,32.6018]
[1733145450420,20.93964767,224.79,224.72,20.93964767]
[1733145450740,20.93964767,224.8,224.73,20.93964767]
[1733145451141,1.573839,224.94,224.79,20.93964767]
[1733145451450,20.93964767,224.93,224.85,20.93964767]
[1733145451631,20.93964767,224.92,224.85,20.93964767]
[1733145451831,20.93964767,224.9,224.83,20.93964767]
[1733145452129,1.573839,224.94,224.81,4.47]
[1733145452130,20.93964767,224.88,224.81,4.47]
[1733145452332,0.12549,224.93,224.82,4.47]
[1733145452646,20.93964767,224.93,224.78,45.1484]
[1733145452835,0.462439,224.94,224.78,45.1484]
[1733145453141,0.462439,224.94,224.79,4.47]
[1733145453339,5.0,224.93,224.79,4.47]
[1733145453534,0.12549,224.92,224.79,4.47]
[1733145453942,20.93964767,224.8,224.72,13.0619]
[1733145454129,20.93964767,224.81,224.75,4.47]
[1733145454448,1.1117,224.88,224.81,4.47]
[1733145454644,20.93964767,224.87,224.81,4.47]
[1733145454950,20.93964767,224.86,224.81,4.47]
[1733145455348,20.93964767,224.83,224.81,4.47]
[1733145455545,20.93964767,224.84,224.77,20.93964767]
[1733145455742,20.93964767,224.85,224.78,20.93964767]
[1733145455932,20.93964767,224.86,224.78,20.93964767]
[1733145456242,20.93964767,224.85,224.78,20.93964767]
[1733145456451,20.93964767,224.84,224.77,20.93964767]
[1733145457237,20.93964767,224.84,224.76,20.93964767]
[1733145457440,20.93964767,224.78,224.75,4.47]
[1733145457760,20.93964767,224.84,224.68,20.93964767]
[1733145457761,20.93964767,224.76,224.68,20.93964767]
[1733145458045,20.93964767,224.75,224.69,4.47]
[1733145458624,20.93964767,224.76,224.69,25.40964767]
[1733145458928,20.93964767,224.84,224.69,25.40964767]
[1733145458929,10.0,224.86,224.74,20.93964767]
[1733145459146,20.93964767,224.81,224.74,20.93964767]
[1733145459355,20.93964767,224.79,224.72,25.40964767]
[1733145459655,20.93964767,224.8,224.72,25.40964767]
[1733145460033,20.93964767,224.79,224.72,25.40964767]
[1733145460230,20.93964767,224.78,224.7,20.93964767]
[1733145460434,20.93964767,224.77,224.7,20.93964767]
[1733145460653,20.93964767,224.78,224.7,20.93964767]
[1733145460847,20.93964767,224.77,224.7,20.93964767]
[1733145461047,20.93964767,224.78,224.71,20.93964767]
[1733145461254,20.93964767,224.77,224.69,25.40964767]
[1733145461769,20.93964767,224.77,224.69,20.93964767]
[1733145462141,20.93964767,224.77,224.7,20.93964767]
[1733145462335,20.93964767,224.77,224.69,20.93964767]
[1733145462733,20.93964767,224.76,224.69,20.93964767]
[1733145462936,20.93964767,224.76,224.68,20.93964767]
[1733145463157,0.23572,254.55,224.75,20.93964767]
[1733145463158,1.1117,224.87,224.75,20.93964767]
[1733145463358,20.93964767,224.83,224.75,20.93964767]
[1733145463662,20.93964767,224.87,224.79,20.93964767]
[1733145464161,20.93964767,224.87,224.81,20.93964767]
[1733145464368,1.1115,224.91,224.79,20.93964767]
[1733145464369,20.93964767,224.86,224.79,20.93964767]
[1733145464542,20.93964767,224.82,224.75,20.93964767]
[1733145464745,20.93964767,224.82,224.74,65.24944767]
[1733145465067,1.1115,224.91,224.8,20.93964767]
[1733145465238,20.93964767,224.89,224.82,20.93964767]
[1733145465439,20.93964767,224.89,224.81,20.93964767]
[1733145465759,20.93964767,224.88,224.8,20.93964767]
[1733145466439,20.93964767,224.87,224.8,20.93964767]
[1733145466646,20.93964767,224.85,224.78,20.93964767]
[1733145466947,20.93964767,224.84,224.77,20.93964767]
[1733145467143,20.93964767,224.84,224.76,20.93964767]
[1733145467445,20.93964767,224.81,224.74,65.24944767]
[1733145467648,20.93964767,224.83,224.75,20.93964767]
[1733145467952,20.93964767,224.86,224.79,20.93964767]
[1733145468150,8.3346,224.91,224.8,20.93964767]
[1733145468151,20.93964767,224.87,224.8,20.93964767]
[1733145468454,20.93964767,224.89,224.81,20.93964767]
[1733145469140,1.1115,224.91,224.83,20.93964767]
[1733145469141,20.93964767,224.91,224.83,20.93964767]
[1733145469541,20.93964767,224.89,224.81,20.93964767]
[1733145469843,20.93964767,224.87,224.79,20.93964767]
[1733145470046,20.93964767,224.86,224.78,20.93964767]
[1733145470293,20.93964767,224.84,224.77,20.93964767]
[1733145470466,10.0,224.9,224.76,4.47]
[1733145470664,1.1115,224.92,224.81,20.93964767]
[1733145470873,20.93964767,224.89,224.81,20.93964767]
[1733145471669,20.93964767,224.89,224.84,4.47]
[1733145472267,0.462439,224.94,224.89,4.47]
[1733145472451,0.462439,224.94,224.85,12.4641]
[1733145472452,20.93964767,224.93,224.85,12.4641]
[1733145472778,20.93964767,224.93,224.86,25.40964767]
[1733145473476,0.462439,224.94,224.86,25.40964767]
[1733145473477,20.93964767,224.91,224.86,4.47]
[1733145473644,20.93964767,224.89,224.85,4.47]
[1733145474354,20.93964767,224.87,224.85,4.47]
[1733145474565,20.93964767,224.87,224.81,4.47]
[1733145474755,20.93964767,224.85,224.81,4.47]
[1733145474951,20.93964767,224.83,224.76,25.40964767]
[1733145475159,20.93964767,224.82,224.76,4.47]